[Event "32nd NATO Championship 2022"]
[Site "Tartu"]
[Date "2022.06.27"]
[Round "1.11"]
[White "Forsythe, William Bradley"]
[Black "Bohn, Ulrich"]
[Result "0-1"]
[ECO "B06"]
[WhiteElo "1608"]
[BlackElo "2168"]
[Annotator "RC"]
[PlyCount "96"]
[EventDate "2022.06.27"]
[EventType "swiss"]
[EventCountry "EST"]
[SourceTitle "playchess.com"]
[Source "ChessBase"]
[SourceQuality "1"]
[TimeControl "5400+30"]

1. e4 {[%emt 0:00:04]} g6 {[%emt 0:00:30]} 2. d4 {[%emt 0:00:11]} Bg7 {[%emt 0:00:03]} 3. c3 {[%emt 0:00:55]} d6 {[%emt 0:00:06]} 4. Bc4 {[%emt 0:00:22]} Nf6 {[%emt 0:00:16]} 5. Qe2 {[%emt 0:02:33]} O-O {[%emt 0:00:09]} 6. Bg5 {[%emt 0:00:46]} Nc6 {[%emt 0:03:09]} 7. Nf3 {[%emt 0:05:22]} e5 {[%emt 0:02:14]} 8. dxe5 {[%emt 0:00:48]} dxe5 {[%emt 0:00:27]} 9. Nbd2 {[%emt 1:23:59]} Qe7 {[%emt 0:05:31]} 10. O-O {[%emt 0:00:00]} h6 {[%emt 0:00:53]} 11. Bh4 {[%emt 0:00:00]} g5 {[%emt 0:02:11]} 12. Bg3 {[%emt 0:00:00]} Nh5 {[%emt 0:01:00]} 13. Bd5 {[%emt 0:00:00]} Nd8 {[%emt 0:02:42]} 14. Ne1 {[%emt 0:00:00]} Nf4 {[%emt 0:03:29]} 15. Bxf4 {[%emt 0:00:00]} exf4 {[%emt 0:00:05]} 16. Nd3 {[%emt 0:00:00]} Be6 {[%emt 0:12:34]} 17. Rfe1 {[%emt 0:00:00]} Re8 {[%emt 0:00:19]} 18. Qf3 {[%emt 0:00:00]} c6 {[%emt 0:04:17]} 19. Bxe6 {[%emt 0:00:00]} Nxe6 {[%emt 1:00:05]} 20. Rad1 {[%emt 0:00:00]} Rad8 {[%emt 0:00:00]} 21. Qe2 {[%emt 0:00:00]} Nc5 {[%emt 0:00:00]} 22. Nxc5 {[%emt 0:00:00]} Qxc5 {[%emt 0:00:00]} 23. Nb3 {[%emt 0:00:00]} Qb5 {[%emt 0:00:00]} 24. Qxb5 {[%emt 0:00:00]} cxb5 {[%emt 0:00:00]} 25. Rxd8 {[%emt 0:00:00]} Rxd8 {[%emt 0:00:00]} 26. a3 {[%emt 0:00:00]} Be5 {[%emt 0:00:00]} 27. f3 {[%emt 0:00:00]} a5 {[%emt 0:00:00]} 28. Nxa5 {[%emt 0:00:00]} Rd2 {[%emt 0:00:00]} 29. Rb1 {[%emt 0:00:00]} Bc7 {[%emt 0:00:00]} 30. Nb3 {[%emt 0:00:20]} Bb6+ {[%emt 0:00:00]} 31. Kh1 {[%emt 0:00:12]} Rf2 {[%emt 0:00:00]} 32. Nd4 {[%emt 0:00:38]} h5 {[%emt 0:00:00]} 33. h3 {[%emt 0:02:41]} Kg7 {[%emt 0:00:00]} 34. Kg1 {[%emt 0:02:19]} Rd2 {[%emt 0:00:00]} 35. Kf1 {[%emt 0:00:12]} Kf6 {[%emt 0:00:17]} 36. Re1 {[%emt 0:00:44]} Ke5 {[%emt 0:01:15]} 37. Ne2 {[%emt 0:00:41]} Rxb2 {[%emt 0:02:31]} 38. Rd1 {[%emt 0:02:44]} Be3 {[%emt 0:00:07]} 39. Rd5+ {[%emt 0:00:52]} Kf6 {[%emt 0:00:02]} 40. Ke1 {[%emt 0:01:35]} Rb3 {[%emt 0:03:18]} 41. g3 {[%emt 0:00:10]} Rb1+ {[%emt 0:00:13]} 42. Rd1 {[%emt 0:00:10]} Bf2+ {[%emt 0:00:11]} 43. Kxf2 {[%emt 0:01:13]} Rxd1 {[%emt 0:00:01]} 44. gxf4 {[%emt 0:00:11]} Ra1 {[%emt 0:01:39]} 45. fxg5+ {[%emt 0:00:31]} Kxg5 {[%emt 0:00:01]} 46. Kg3 {[%emt 0:00:19]} h4+ {[%emt 0:00:16]} 47. Kf2 {[%emt 0:00:12]} Rxa3 {[%emt 0:00:18]} 48. f4+ {[%emt 0:00:05]} Kg6 {[%emt 0:00:45]} 0-1

[Event "32nd NATO Championship 2022"]
[Site "Tartu"]
[Date "2022.06.27"]
[Round "1.47"]
[White "Jansen, Lyle John"]
[Black "Tammisto, Janek"]
[Result "0-1"]
[ECO "A01"]
[WhiteElo "1470"]
[BlackElo "1881"]
[Annotator "NA RC"]
[PlyCount "78"]
[EventDate "2022.06.27"]
[EventType "swiss"]
[EventCountry "EST"]
[SourceTitle "playchess.com"]
[Source "ChessBase"]
[SourceQuality "1"]
[TimeControl "5400+30"]

1. b3 {[%emt 0:00:19]} Nf6 {[%emt 0:00:31]} 2. Bb2 {[%emt 0:00:35]} g6 {[%emt 0:00:04]} 3. Bxf6 {[%emt 0:03:10]} exf6 {[%emt 0:00:05]} 4. Nf3 {[%emt 0:00:59]} Bg7 {[%emt 0:00:12]} 5. e3 {[%emt 0:03:08]} b6 {[%emt 0:00:28]} 6. d3 {[%emt 0:01:21]} Bb7 {[%emt 0:00:40]} 7. Be2 {[%emt 0:01:49]} O-O {[%emt 0:01:03]} 8. O-O {[%emt 0:00:14]} f5 {[%emt 0:01:31]} 9. d4 {[%emt 0:01:58]} c5 {[%emt 0:01:27]} 10. Nbd2 {[%emt 0:03:27]} Nc6 {[%emt 0:06:32]} 11. Nc4 {[%emt 0:07:18]} d5 {[%emt 0:02:40]} 12. Nce5 {[%emt 0:07:16]} Qc7 {[%emt 0:00:23]} 13. Nxc6 {[%emt 0:10:40]} Bxc6 {[%emt 0:01:09]} 14. Rb1 {[%emt 0:02:35]} f4 {[%emt 0:03:55]} 15. exf4 {[%emt 0:09:52]} Qxf4 {[%emt 0:00:50]} 16. dxc5 {[%emt 0:04:03]} bxc5 {[%emt 0:00:34]} 17. a4 {[%emt 0:07:27]} Rfe8 {[%emt 0:03:47]} 18. Bb5 {[%emt 0:01:53]} Bxb5 {[%emt 0:07:48]} 19. axb5 {[%emt 0:00:11]} d4 {[%emt 0:00:30]} 20. Re1 {[%emt 0:01:23]} Qc7 {[%emt 0:07:01]} 21. Rxe8+ {[%emt 0:02:05]} Rxe8 {[%emt 0:00:04]} 22. Qd3 {[%emt 0:02:24]} Qa5 {[%emt 0:09:37]} 23. Qc4 {[%emt 0:03:57]} Bf8 {[%emt 0:00:24]} 24. g3 {[%emt 0:03:47]} Rb8 {[%emt 0:02:56]} 25. Ne5 {[%emt 0:01:35]} Rb7 {[%emt 0:01:30]} 26. Qa4 {[%emt 0:02:49]} Rxb5 {[%emt 0:01:08]} 27. Qxa5 {[%emt 0:00:48]} Rxa5 {[%emt 0:00:05]} 28. Nc6 {[%emt 0:00:38]} Ra2 {[%emt 0:00:31]} 29. Re1 {[%emt 0:04:54]} Rxc2 {[%emt 0:04:38]} 30. Nxa7 {[%emt 0:00:57]} Rb2 {[%emt 0:01:36]} 31. Re8 {[%emt 0:01:03]} Rxb3 {[%emt 0:03:37]} 32. Nc6 {[%emt 0:00:41]} Kg7 {[%emt 0:02:50]} 33. Na5 {[%emt 0:00:26]} Rb4 {[%emt 0:02:34]} 34. Nc6 {[%emt 0:00:50]} Rb2 {[%emt 0:00:49]} 35. Rd8 {[%emt 0:01:08]} Rb7 {[%emt 0:01:57]} 36. f4 {[%emt 0:00:45]} Rc7 {[%emt 0:00:14]} 37. Ne5 {[%emt 0:00:49]} c4 {[%emt 0:01:09]} 38. Rxd4 {[%emt 0:00:29]} Bc5 {[%emt 0:00:07]} 39. Nf3 {[%emt 0:01:36]} c3 {[%emt 0:00:06]} 0-1

[Event "32nd NATO Championship 2022"]
[Site "Tartu"]
[Date "2022.06.28"]
[Round "2.1"]
[White "Stein, Robert"]
[Black "Tustanowski, Mateusz"]
[Result "1-0"]
[ECO "E68"]
[WhiteElo "2365"]
[BlackElo "2036"]
[Annotator "TA"]
[PlyCount "97"]
[EventDate "2022.06.27"]
[EventType "swiss"]
[EventCountry "EST"]
[SourceTitle "playchess.com"]
[Source "ChessBase"]
[SourceQuality "1"]
[TimeControl "5400+30"]

{[%evp 19,97,30,24,0,32,2,0,0,0,0,0,11,0,0,0,2,33,28,51,46,69,74,70,40,41,40,40,40,41,51,80,68,77,65,103,105,155,146,157,170,158,129,131,148,140,103,359,314,348,323,300,24,18,22,286,162,722,685,914,766,704,473,1777,1484,1630,1454,2070,2061,1001,1000,2255,1187,2192,2120,2141,2135,29994,29995,29995,29996]} 1. d4 {[%emt 0:00:05]} Nf6 {[%emt 0:00:29]} 2. c4 {[%emt 0:01:21]} g6 {[%emt 0:04:21]} 3. g3 {[%emt 0:04:27]} Bg7 {[%emt 0:05:35]} 4. Bg2 {[%emt 0:01:42]} d6 {[%emt 0:05:17]} 5. Nf3 {[%emt 0:01:43]} O-O {[%emt 0:02:16]} 6. O-O {[%emt 0:00:17]} Nbd7 {[%emt 0:03:27][%cal Bb8d7,Bd7c5,Bc5e6,Be6d4,Bd4c6,Bc6e5,Be5f3][%mdl 32]} 7. Nc3 {[%emt 0:02:59]} e5 {[%emt 0:07:00]} 8. e4 {[%emt 0:03:08]} exd4 {[%emt 0:12:38]} 9. Nxd4 {[%emt 0:00:51]} Re8 {[%emt 0:00:55]} 10. Re1 {[%emt 0:13:13]} Nc5 {[%emt 0:06:43] 10...Nc5 is better than 10...a6.} 11. Bf4 {[%emt 0:12:23] E68: King's Indian: Fianchetto: 6...Nbd7 7 0-0 e5 8 e4.} Ne6 {[%emt 0:11:25]} 12. Be3 {[%emt 0:05:57] [#]} Ng4 $146 {[%emt 0:04:45]} ({Predecessor:} 12... Nxd4 13. Bxd4 Be6 14. b3 Nd7 15. f4 Bxd4+ 16. Qxd4 Qf6 17. e5 dxe5 18. fxe5 Qg7 19. Bxb7 {1-0 (46) Weetik,V (2423)-Miszler,L (2225) Chess.com INT 2021}) 13. Qxg4 {[%emt 0:00:58] The position is equal.} Nxd4 {[%emt 0:00:49]} 14. Qd1 {[%emt 0:00:35]} c5 {[%emt 0:08:06]} 15. Qd2 {[%emt 0:05:48]} Be6 {[%emt 0:10:35]} 16. Ne2 {[%emt 0:11:29]} Nc6 {[%emt 0:05:26]} 17. Rac1 {[%emt 0:09:48]} Ne5 {[%emt 0:01:22]} 18. b3 {[%emt 0:03:23]} Bg4 {[%emt 0:01:46]} 19. Nc3 {[%emt 0:03:18]} Nf3+ {[%emt 0:02:49]} 20. Bxf3 {[%emt 0:00:04]} Bxf3 {[%emt 0:00:04]} 21. Bh6 {[%emt 0:02:17]} (21. Bg5 $5 {[%cal Rg5d8]} Qa5 22. Re3 $16) 21... Qd7 {[%emt 0:02:18] ( -> ...Qh3)} 22. Qf4 {[%emt 0:01:07]} Bxh6 {[%emt 0:00:39]} 23. Qxh6 {[%emt 0:00:04] Black must now prevent Nd5.} f5 $1 {[%emt 0:02:16][%cal Rf5e4]} 24. Nd5 $36 {[%emt 0:06:45][%mdl 2048] White is pushing.} Qf7 {[%emt 0:00:49] Against Nf6+} 25. exf5 {[%emt 0:03:08] White is more active.} Bxd5 {[%emt 0:00:32]} 26. fxg6 {[%emt 0:00:37]} ({Of course not} 26. cxd5 $6 Qxf5 27. Qd2 b6 $11) 26... hxg6 {[%emt 0:00:30]} 27. cxd5 {[%emt 0:00:06]} Rxe1+ {[%emt 0:00:17]} (27... Rf8 $142) 28. Rxe1 $16 {[%emt 0:00:12] Strongly threatening Re6.} Re8 {[%emt 0:00:43] Prevents Re6.} 29. Rxe8+ {[%emt 0:00:40]} Qxe8 {[%emt 0:00:03][%mdl 4096] Endgame KQ-KQ} 30. Qe3 {[%emt 0:01:15] Prevents Qe1+.} Qf7 {[%emt 0:00:20]} 31. Qd3 {[%emt 0:01:40]} Qf6 {[%emt 0:00:57]} 32. a4 {[%emt 0:00:31]} a6 $2 {[%emt 0:00:19][%mdl 8192]} (32... Kg7 $16 {is a better defense.} 33. Qe4 b6) 33. h4 {[%emt 0:01:01]} Kg7 {[%emt 0:00:14]} 34. Kg2 $1 {[%emt 0:01:04]} Qe5 {[%emt 0:00:11] [#]} 35. f4 $2 {[%emt 0:00:46]} (35. a5 $1 $18) 35... Qb2+ $1 $11 {[%emt 0:00:04]} 36. Kh3 {[%emt 0:00:04] a5 is the strong threat.} Qf2 $2 {[%emt 0:01:30][%mdl 8192] [#]} (36... b5 $11) 37. Kg4 {[%emt 0:01:37]} (37. h5 $142 $1 gxh5 38. Qe4) 37... Qb2 $2 {[%emt 0:00:55]} (37... Qe1 38. f5 gxf5+ 39. Qxf5 (39. Kxf5 b5 $16) 39... Qd1+ 40. Kg5 Qd2+ 41. Kg4 Qd1+ 42. Kg5 Qd2+ 43. Kh5 Qe2+ 44. Kg5 Qd2+) 38. a5 $18 {[%emt 0:02:00]} Qa1 {[%emt 0:00:31]} 39. Qe2 {[%emt 0:00:24]} Kh6 {[%emt 0:00:16]} 40. Qd2 {[%emt 0:01:02]} Kg7 {[%emt 0:00:16]} (40... Kh7 $142 41. Qd3 Kg7) 41. f5 {[%emt 0:00:35]} gxf5+ {[%emt 0:00:30]} 42. Kxf5 {[%emt 0:00:19] Hoping for Qg5+.} Qe5+ {[%emt 0:00:16]} 43. Kg4 {[%emt 0:00:33] Threatens to win with Qg5+.} Qe4+ {[%emt 0:00:13]} 44. Qf4 {[%emt 0:00:21]} Qe2+ {[%emt 0:01:25]} 45. Qf3 {[%emt 0:00:21]} Qd2 {[%emt 0:00:20]} 46. Qe4 {[%emt 0:00:13] And now Qe7+ would win.} Qd1+ {[%emt 0:00:23]} 47. Kg5 {[%emt 0:00:45] Qe7+ would kill now.} Qxb3 {[%emt 0:00:53]} 48. Qe7+ {[%emt 0:00:06]} Kg8 {[%emt 0:00:03]} 49. Kh6 {[%emt 0:01:15] Weighted Error Value: White=0.33/Black=0.65} 1-0

[Event "32nd NATO Championship 2022"]
[Site "Tartu"]
[Date "2022.06.28"]
[Round "2.2"]
[White "Jacob, Tobias"]
[Black "Pedersen, Finn"]
[Result "0-1"]
[ECO "A11"]
[WhiteElo "2021"]
[BlackElo "2300"]
[Annotator "TA"]
[PlyCount "102"]
[EventDate "2022.06.27"]
[EventType "swiss"]
[EventCountry "EST"]
[SourceTitle "playchess.com"]
[Source "ChessBase"]
[SourceQuality "1"]
[TimeControl "5400+30"]

{[%evp 10,102,25,18,16,24,44,43,52,46,44,29,39,17,35,30,50,52,61,51,77,87,100,105,103,96,107,100,104,78,78,63,81,82,83,86,85,89,82,78,106,106,131,116,142,128,126,134,156,131,125,121,157,131,137,117,121,124,145,56,64,32,23,39,33,50,45,18,18,18,93,106,82,16,16,18,18,-8,0,0,0,-1154,-997,-1466,-1412,-1435,-1195,-4133,-4133,-4133,-4133,-4129,-4125,-29988,-29987]} 1. c4 {[%emt 0:00:08]} c6 {[%emt 0:00:13]} 2. g3 {[%emt 0:00:08]} d5 {[%emt 0:00:06]} 3. Bg2 {[%emt 0:00:07]} Nf6 {[%emt 0:00:16]} 4. Nf3 {[%emt 0:00:10]} Bf5 {[%emt 0:00:52]} 5. Qb3 {[%emt 0:00:36]} Qb6 {[%emt 0:00:58]} 6. d3 {[%emt 0:00:12]} e6 {[%emt 0:02:05] A11: English Opening: 1...c6.} 7. Be3 {[%emt 0:00:57]} dxc4 {[%emt 0:01:16]} 8. Qxc4 {[%emt 0:05:28]} Qb4+ {[%emt 0:02:41] [#] White is slightly better.} 9. Qxb4 $146 {[%emt 0:02:03]} ({Predecessor:} 9. Nbd2 Nbd7 10. O-O h6 11. Qc2 Qa5 12. Nc4 Qa6 13. Bf4 c5 14. Nfe5 Be7 15. Nxd7 Nxd7 {1-0 (46) Sowul,B (2221)-Flak,P (2205) Jastrzebia Gora 2019}) 9... Bxb4+ {[%emt 0:00:10]} 10. Nc3 {[%emt 0:00:22]} Nbd7 {[%emt 0:01:38]} 11. O-O {[%emt 0:00:52]} h6 {[%emt 0:02:34]} 12. a3 {[%emt 0:02:06]} Be7 {[%emt 0:02:10]} 13. b4 {[%emt 0:02:14]} a6 {[%emt 0:04:00]} 14. Nd4 {[%emt 0:04:49]} Bh7 {[%emt 0:00:39]} 15. Nb3 {[%emt 0:01:14]} Nd5 {[%emt 0:06:20]} 16. Nxd5 {[%emt 0:06:03]} cxd5 {[%emt 0:04:56]} 17. Rac1 {[%emt 0:08:55]} Bd6 {[%emt 0:02:00]} 18. Na5 {[%emt 0:04:23]} b6 {[%emt 0:00:55]} 19. Rc6 {[%emt 0:34:08]} bxa5 {[%emt 0:04:55]} 20. Rxd6 {[%emt 0:00:28]} axb4 {[%emt 0:00:18]} 21. axb4 {[%emt 0:00:42]} Ke7 {[%emt 0:00:36]} 22. Rc6 {[%emt 0:00:09]} Rhc8 {[%emt 0:00:24]} 23. Rxc8 {[%emt 0:03:37]} Rxc8 {[%emt 0:00:08]} 24. Ra1 {[%emt 0:00:28]} Rc6 {[%emt 0:01:07]} 25. f4 {[%emt 0:01:00]} Kd6 {[%emt 0:01:10]} 26. Kf2 {[%emt 0:01:15]} f6 {[%emt 0:01:47]} 27. Ra5 {[%emt 0:01:46]} g5 {[%emt 0:01:11]} 28. g4 {[%emt 0:02:29]} Bg8 {[%emt 0:00:37]} 29. Kg3 {[%emt 0:01:57]} e5 {[%emt 0:02:23]} 30. fxe5+ {[%emt 0:01:02]} Nxe5 {[%emt 0:01:14]} 31. Bc5+ {[%emt 0:01:01] This bishop pair is nice.} Kc7 {[%emt 0:02:43]} 32. Bf8 {[%emt 0:01:04]} Rc2 {[%emt 0:02:58]} 33. Bf3 {[%emt 0:07:17]} ({But not} 33. Bxh6 $6 Rxe2 34. h3 Nxd3 $11) 33... Kb6 {[%emt 0:00:41]} 34. Bc5+ {[%emt 0:02:10]} ({White should play} 34. Bxh6 $16 Nd7 35. Bxd5 Bxd5 36. Rxd5) 34... Kb7 $14 {[%emt 0:00:06]} 35. Be7 {[%emt 0:00:18][%csl LRd5,LRf6]} Nc6 {[%emt 0:00:34]} 36. Rc5 {[%emt 0:01:39]} Nxb4 {[%emt 0:01:10]} 37. Rxc2 {[%emt 0:01:15]} Nxc2 {[%emt 0:00:07]} 38. Bxf6 {[%emt 0:00:13][%mdl 4096] Endgame KBB-KBN} a5 {[%emt 0:02:55]} 39. e4 {[%emt 0:00:31]} Kc6 {[%emt 0:00:20]} (39... d4 $1 $11) 40. Bg7 $16 {[%emt 0:00:50]} d4 {[%emt 0:02:50]} 41. Bd1 {[%emt 0:01:59]} (41. Bxh6 $16 a4 42. Bxg5 (42. e5+ Kb5 $11)) 41... Bb3 $1 $11 {[%emt 0:02:57]} 42. Bxh6 {[%emt 0:01:18]} a4 {[%emt 0:00:28]} 43. Bg7 {[%emt 0:01:21]} ({Avoid the trap} 43. Bxg5 $2 Ne3 44. h4 Nxd1 $19) 43... Kc5 {[%emt 0:01:06] Hoping for ...Nb4.} 44. Bf8+ {[%emt 0:00:04]} Kb5 {[%emt 0:00:08] ...Nb4 is the strong threat.} 45. h4 $2 {[%emt 0:00:58][%mdl 8192] [#]} (45. Bg7 $11) 45... gxh4+ $1 $19 {[%emt 0:02:17]} 46. Kxh4 {[%emt 0:00:02]} Nb4 {[%emt 0:00:46]} 47. Bg7 {[%emt 0:01:35]} Nc6 {[%emt 0:00:20]} 48. e5 {[%emt 0:00:32]} Bxd1 {[%emt 0:00:47]} 49. e6 {[%emt 0:00:09]} Bb3 {[%emt 0:00:30]} 50. e7 {[%emt 0:00:09]} Bf7 {[%emt 0:00:09] [#] ( -> ...a3)} 51. Kg5 {[%emt 0:00:33]} a3 {[%emt 0:00:13] Black used his chance.  Weighted Error Value: White=0.70/Black=0.08 (flawless)} 0-1

[Event "32nd NATO Championship 2022"]
[Site "Tartu"]
[Date "2022.06.28"]
[Round "2.3"]
[White "Pavlidis, Anastasios"]
[Black "Hernandez, Albert"]
[Result "1-0"]
[ECO "E69"]
[WhiteElo "2296"]
[BlackElo "2229"]
[Annotator "TA"]
[PlyCount "41"]
[EventDate "2022.06.27"]
[EventType "swiss"]
[EventCountry "EST"]
[SourceTitle "playchess.com"]
[Source "ChessBase"]
[SourceQuality "1"]
[TimeControl "5400+30"]

{[%evp 21,41,39,73,70,79,87,220,223,248,242,376,371,485,423,812,787,823,812,914,927,1139,1116]} 1. d4 {[%emt 0:00:07]} Nf6 {[%emt 0:00:05]} 2. c4 {[%emt 0:00:13]} g6 {[%emt 0:00:04]} 3. Nf3 {[%emt 0:01:01]} Bg7 {[%emt 0:00:06]} 4. g3 {[%emt 0:05:39]} O-O {[%emt 0:00:22]} 5. Bg2 {[%emt 0:00:08]} d6 {[%emt 0:00:44]} 6. O-O {[%emt 0:00:45]} Nbd7 {[%emt 0:00:54]} 7. Nc3 {[%emt 0:00:38]} e5 {[%emt 0:00:47]} 8. e4 {[%emt 0:01:33]} c6 {[%emt 0:01:05]} 9. h3 {[%emt 0:12:35]} Qc7 {[%emt 0:01:03]} 10. Be3 {[%emt 0:02:27]} Re8 {[%emt 0:01:47]} 11. Qc2 {[%emt 0:07:38]} Nf8 {[%emt 0:01:46]} 12. Rfd1 {[%emt 0:02:43] White is more active. E69: King's Indian: Fianchetto: 6...Nbd7 7 0-0 e5 8 e4 c6 9 h3.} Bd7 {[%emt 0:03:00]} 13. c5 {[%emt 0:04:33] [#] Threatens to win with cxd6.} dxc5 $146 {[%emt 0:02:00]} (13... exd4 $16 {was necessary.} 14. cxd6 (14. Bxd4 dxc5 15. Bxc5 Rad8 $14) 14... Qc8 15. Bxd4 (15. Rxd4 Bxh3 16. Re1 b5 $14) 15... Bxh3) ({Predecessor:} 13... Qc8 14. dxe5 dxe5 15. Kh2 Qc7 16. Rd2 Be6 17. Rad1 N6d7 18. Ng5 Rad8 19. Ne2 h6 20. Nxe6 Nxe6 {1-0 (40) Caselas Cabanas,J (2350)-Andrade Ocana,J Loures 1996}) 14. dxe5 $18 {[%emt 0:02:26] White is clearly better.} Nh5 {[%emt 0:04:39]} 15. g4 {[%emt 0:02:48]} ({Much less strong is} 15. Bxc5 Bh6 16. b3 Qc8) 15... Bxe5 {[%emt 0:00:27]} (15... Qc8 $142 16. Ne2 b6 17. gxh5 Bxh3) 16. gxh5 {[%emt 0:00:21]} Qc8 {[%emt 0:04:05]} 17. hxg6 {[%emt 0:09:14] White is clearly winning.} Nxg6 {[%emt 0:03:48]} (17... hxg6 $142 18. Nxe5 Rxe5) 18. Nxe5 {[%emt 0:00:56]} Rxe5 {[%emt 0:00:25]} 19. f4 {[%emt 0:00:29][%cal Bf2f4,Bf4e5][%mdl 32]} Bxh3 {[%emt 0:04:17]} 20. fxe5 {[%emt 0:02:55]} Nh4 {[%emt 0:03:34]} 21. Bg5 {[%emt 0:04:03] Black got outplayed after the opening.  Weighted Error Value: White=0.11 (very precise) /Black=0.86} 1-0

[Event "32nd NATO Championship 2022"]
[Site "Tartu"]
[Date "2022.06.28"]
[Round "2.4"]
[White "Aagaard, Gert"]
[Black "Wang, Eigen"]
[Result "0-1"]
[ECO "D02"]
[WhiteElo "1979"]
[BlackElo "2269"]
[Annotator "TA"]
[PlyCount "52"]
[EventDate "2022.06.27"]
[EventType "swiss"]
[EventCountry "EST"]
[SourceTitle "playchess.com"]
[Source "ChessBase"]
[SourceQuality "1"]
[TimeControl "5400+30"]

{[%evp 9,52,8,11,-42,-26,-40,-30,-122,-37,-33,-39,-154,-161,-160,-144,-150,-143,-202,-202,-344,-337,-341,-341,-323,-337,-337,-298,-333,-328,-560,-566,-1541,-831,-986,-1006,-981,-978,-1697,-899,-866,-869,-1302,-1289,-886,-904]} 1. d4 {[%emt 0:00:09]} Nf6 {[%emt 0:00:15]} 2. Bf4 {[%emt 0:00:28]} g6 {[%emt 0:00:55]} 3. Nf3 {[%emt 1:31:23]} Bg7 {[%emt 0:01:02]} 4. Nbd2 {[%emt 0:00:00]} d5 {[%emt 0:00:29]} 5. e3 {[%emt 0:00:00]} O-O {[%emt 0:00:07]} 6. Ne5 {[%emt 0:00:00] D02: 1 d4 d5 2 Nf3 sidelines, including 2...Nf6 3 g3 and 2...Nf6 3 Bf4.} ({White should try} 6. c3 $11) 6... c5 {[%emt 0:01:08]} 7. c3 {[%emt 0:00:00]} Nh5 {[%emt 0:05:23]} 8. Bd3 {[%emt 0:00:00]} (8. dxc5 $11 Nxf4 9. exf4) 8... Nc6 {[%emt 0:05:23]} (8... cxd4 $17 9. cxd4 Nxf4 10. exf4 Qd6) 9. Nxc6 $15 {[%emt 0:00:00]} bxc6 {[%emt 0:00:05] [#]} 10. dxc5 $146 {[%emt 0:00:00] [#] Black keeps a firm grip on the game.} ({White should play} 10. Bg5 $15) ({Predecessor:} 10. Bg5 h6 11. Bh4 cxd4 12. exd4 Nf4 13. Qf3 Nxd3+ 14. Qxd3 a5 15. Qe3 Ba6 16. Nb3 {0-1 (26) Vasynda,O (1724)-Terletsky,O (2195) Chernivtsi 2021}) 10... e5 $1 $17 {[%emt 0:02:06]} 11. Bg3 {[%emt 0:00:00]} f5 {[%emt 0:05:27]} 12. f3 {[%emt 0:00:00]} Qg5 {[%emt 0:06:58] And now ...f4 would win.} 13. f4 {[%emt 0:00:00]} (13. Bf2 $17 {was necessary.}) 13... exf4 $19 {[%emt 0:00:48]} 14. Bxf4 {[%emt 0:00:00]} (14. exf4 {is the only way for White.} Nxf4 15. Nf3 Qe7+ 16. Kf1 Nxd3 17. Qxd3) 14... Nxf4 {[%emt 0:00:33]} 15. exf4 {[%emt 0:00:00]} Re8+ {[%emt 0:02:28]} ({Don't go for} 15... Qxg2 $2 16. Qf3 Re8+ 17. Kd1 Qxf3+ 18. Nxf3 $19) ({Avoid the trap} 15... Qxf4 $2 16. Qe2 $19) 16. Kf1 {[%emt 0:00:00]} Qxf4+ {[%emt 0:00:11]} 17. Nf3 {[%emt 0:00:00]} Rb8 {[%emt 0:07:48]} 18. Rb1 {[%emt 0:00:00]} a5 {[%emt 0:06:54]} 19. Qd2 $2 {[%emt 0:00:00]} (19. Qc2) 19... Re3 {[%emt 0:00:54] Threatens to win with ...Rxf3+. Black is clearly winning.} 20. Rd1 {[%emt 0:00:00]} Bh6 {[%emt 0:01:27][%cal Bg7h6,Bh6f4,Bf4g3][%mdl 32] ( -> ...Rxf3+)} 21. Qf2 {[%emt 0:00:00] [#]} Rxd3 $1 {[%emt 0:02:45][%mdl 512]} 22. Rxd3 {[%emt 0:00:00]} Ba6 {[%emt 0:00:08]} 23. Ne1 {[%emt 0:00:00]} Rxb2 {[%emt 0:06:37][%csl Gb2][%cal Rf4f2][%mdl 64] Pin} 24. Qxf4 {[%emt 0:00:00]} Bxf4 {[%emt 0:00:05]} 25. h4 {[%emt 0:00:00]} Bg3 {[%emt 0:02:26] White must now prevent ...Rf2+.} 26. Rh3 {[%emt 0:00:00]} f4 {[%emt 0:00:20] Weighted Error Value: White=1.14/Black=0.46} 0-1

[Event "32nd NATO Championship 2022"]
[Site "Tartu"]
[Date "2022.06.28"]
[Round "2.24"]
[White "Balmaceda, Enrico"]
[Black "Papler, Peter"]
[Result "1/2-1/2"]
[ECO "A53"]
[WhiteElo "1958"]
[BlackElo "1714"]
[Annotator "NA RC"]
[PlyCount "58"]
[EventDate "2022.06.27"]
[EventType "swiss"]
[EventCountry "EST"]
[SourceTitle "playchess.com"]
[Source "ChessBase"]
[SourceQuality "1"]
[TimeControl "5400+30"]

1. d4 {[%emt 0:00:18]} Nf6 {[%emt 0:00:16]} 2. Bg5 {[%emt 0:00:07]} d6 {[%emt 0:00:31]} 3. c4 {[%emt 0:00:27]} Nbd7 {[%emt 0:00:12]} 4. Nc3 {[%emt 0:00:14]} h6 {[%emt 0:00:36]} 5. Bh4 {[%emt 0:02:28]} c6 {[%emt 0:01:00]} 6. Nf3 {[%emt 0:00:52]} Qc7 {[%emt 0:00:22]} 7. e4 {[%emt 0:04:12]} e5 {[%emt 0:00:20]} 8. Bxf6 {[%emt 0:07:49]} (8. Be2 $14 {deserves consideration.}) 8... Nxf6 {[%emt 0:00:15]} 9. Be2 {[%emt 0:00:07]} Be7 {[%emt 0:00:19]} 10. O-O {[%emt 0:00:43]} O-O {[%emt 0:00:10]} 11. Qd2 {[%emt 0:02:42]} Rd8 {[%emt 0:07:12]} 12. d5 {[%emt 0:08:21]} a6 {[%emt 0:01:26]} 13. a4 {[%emt 0:03:46]} c5 {[%emt 0:06:01]} 14. Ra3 {[%emt 0:12:41]} Qa5 {[%emt 0:05:22]} 15. Ne1 {[%emt 0:11:21]} Re8 {[%emt 0:06:48]} 16. f4 {[%emt 0:17:51]} Bf8 {[%emt 0:03:43]} 17. f5 {[%emt 0:03:58]} Bd7 {[%emt 0:00:32]} 18. g4 {[%emt 0:00:24]} Nh7 {[%emt 0:02:18]} 19. h4 {[%emt 0:04:01]} Qd8 {[%emt 0:00:18]} 20. Nf3 {[%emt 0:01:20]} (20. Ng2 $14) 20... Be7 {[%emt 0:02:43]} 21. Qe1 {[%emt 0:00:13]} g5 {[%emt 0:04:47]} 22. fxg6 {[%emt 0:04:30]} fxg6 {[%emt 0:00:11]} 23. Qg3 {[%emt 0:01:27]} Rf8 {[%emt 0:04:07]} 24. Nd1 {[%emt 0:01:58]} Rf4 {[%emt 0:13:45]} 25. Nf2 {[%emt 0:00:32]} Qb6 {[%emt 0:00:12]} 26. Re3 {[%emt 0:02:10]} (26. g5 $142) 26... Raf8 {[%emt 0:04:03]} 27. b3 {[%emt 0:00:21]} Qd8 $19 {[%emt 0:00:37]} 28. Kg2 {[%emt 0:02:53]} Nf6 {[%emt 0:02:13]} 29. Nh2 {[%emt 0:00:10]} Kh7 {[%emt 0:02:59]} 1/2-1/2